Workbook

Sheet DA S0FTWARE
B3: =CONCATENATE("D.A enhanced from ",S6*100,"% to ",S5*100,"%. ","Enhancement : ",(S5-S6)*100,"% ", "The D.A arrears from ",DAY(DATE(code!M8,code!K8,1)),"-",MONTH(DATE(code!M8,code!K8,1)),"-",YEAR(DATE(code!M8,code!K8,1))," to ",code!E22,"-",MONTH(code!T22),"-",YEAR(code!T22)," will be adjusted to the ",code!S8," Accounts. Cash will be paid from ",code!Q6 ) -> D.A enhanced from 16.264% to 24.824%. Enhancement : 8.56% The D.A arrears from 1-7-2010 to 30-11-2011 will be adjusted to the ZPPF Accounts. Cash will be paid from 1-12-2010
B4: Increment Rate | C4: Basic Pay | D4: =CONCATENATE("D.A To be Drawn (",S5*100,"%)") -> D.A To be Drawn (24.824%) | E4: =CONCATENATE("D.A already Drawn (",S6*100,"%)") -> D.A already Drawn (16.264%) | F4: =CONCATENATE("difference (",(S5-S6)*100,"%)") -> difference (8.56%) | G4: =CONCATENATE(code!S8,":",code!K8,"/",RIGHT(code!M8,2)," to ",code!W24," (",code!P23," months)") -> ZPPF:7/10 to 11/10 (5 months) | H4: =CONCATENATE("CASH:"," ",code!O8,"/",code!Q8," (1 months)") -> CASH: 12/2010 (1 months) | J4: Increment Rate | K4: =C4 -> Basic Pay | L4: D.A To be Drawn (24.824%) | M4: D.A already Drawn (16.264%) | N4: difference (8.56%) | O4: =G4 -> ZPPF:7/10 to 11/10 (5 months) | P4: CASH: 12/2010 (1 months) | R4: D.A (For Print Use legal Pepar) | U4: Edit only Green color cells
B5: 200 | C5: =code!H2 -> 6700 | D5: =ROUND((C5*S5),0) -> 1663 | E5: =ROUND((C5*S6),0) -> 1090 | F5: =D5-E5 -> 573 | G5: =ROUND((F5*code!$P$23),0) -> 2865 | H5: =ROUND((F5*1),0) -> 573 | J5: 570 | K5: =code!H43 -> 21250 | L5: =ROUND((K5*$S$5),0) -> 5275 | M5: =ROUND((K5*$S$6),0) -> 3456 | N5: =L5-M5 -> 1819 | O5: =ROUND((N5*code!$P$23),0) -> 9095 | P5: =ROUND((N5*1),0) -> 1819 | R5: To Be | S5: 0.24824
C6: =code!H3 -> 6900 | D6: =ROUND((C6*S5),0) -> 1713 | E6: =ROUND((C6*S6),0) -> 1122 | F6: 591 | G6: =ROUND((F6*code!$P$23),0) -> 2955 | H6: =ROUND((F6*1),0) -> 591 | K6: =code!H44 -> 21820 | L6: =ROUND((K6*$S$5),0) -> 5417 | M6: =ROUND((K6*$S$6),0) -> 3549 | N6: =L6-M6 -> 1868 | O6: =ROUND((N6*code!$P$23),0) -> 9340 | P6: =ROUND((N6*1),0) -> 1868 | R6: Already | S6: 0.16264
C7: =code!H4 -> 7100 | D7: =ROUND((C7*S5),0) -> 1763 | E7: =ROUND((C7*S6),0) -> 1155 | F7: 608 | G7: =ROUND((F7*code!$P$23),0) -> 3040 | H7: 608 | J7: 610 | K7: =code!H45 -> 22430 | L7: 5568 | M7: 3648 | N7: 1920 | O7: =ROUND((N7*code!$P$23),0) -> 9600 | P7: 1920
C8: =code!H5 -> 7300 | D8: =ROUND((C8*S5),0) -> 1812 | E8: =ROUND((C8*S6),0) -> 1187 | F8: 625 | G8: =ROUND((F8*code!$P$23),0) -> 3125 | H8: 625 | K8: =code!H46 -> 23040 | L8: 5719 | M8: 3747 | N8: 1972 | O8: =ROUND((N8*code!$P$23),0) -> 9860 | P8: 1972
B9: 220 | C9: =code!H6 -> 7520 | D9: =ROUND((C9*S5),0) -> 1867 | E9: =ROUND((C9*S6),0) -> 1223 | F9: 644 | G9: =ROUND((F9*code!$P$23),0) -> 3220 | H9: 644 | K9: =code!H47 -> 23650 | L9: 5871 | M9: 3846 | N9: 2025 | O9: =ROUND((N9*code!$P$23),0) -> 10125 | P9: 2025
C10: =code!H7 -> 7740 | D10: =ROUND((C10*S5),0) -> 1921 | E10: =ROUND((C10*S6),0) -> 1259 | F10: 662 | G10: =ROUND((F10*code!$P$23),0) -> 3310 | H10: 662 | J10: 650 | K10: =code!H48 -> 24300 | L10: 6032 | M10: 3952 | N10: 2080 | O10: =ROUND((N10*code!$P$23),0) -> 10400 | P10: 2080 | R10: To ZPPF
C11: =code!H8 -> 7960 | D11: =ROUND((C11*S5),0) -> 1976 | E11: =ROUND((C11*S6),0) -> 1295 | F11: 681 | G11: =ROUND((F11*code!$P$23),0) -> 3405 | H11: 681 | K11: =code!H49 -> 24950 | L11: 6194 | M11: 4058 | N11: 2136 | O11: =ROUND((N11*code!$P$23),0) -> 10680 | P11: 2136 | R11: CASH
B12: 240 | C12: =code!H9 -> 8200 | D12: =ROUND((C12*S5),0) -> 2036 | E12: =ROUND((C12*S6),0) -> 1334 | F12: 702 | G12: =ROUND((F12*code!$P$23),0) -> 3510 | H12: 702 | K12: =code!H50 -> 25600 | L12: 6355 | M12: 4164 | N12: 2191 | O12: =ROUND((N12*code!$P$23),0) -> 10955 | P12: 2191
C13: =code!H10 -> 8440 | D13: =ROUND((C13*S5),0) -> 2095 | E13: =ROUND((C13*S6),0) -> 1373 | F13: 722 | G13: =ROUND((F13*code!$P$23),0) -> 3610 | H13: 722 | J13: 700 | K13: =code!H51 -> 26300 | L13: 6529 | M13: 4277 | N13: 2252 | O13: =ROUND((N13*code!$P$23),0) -> 11260 | P13: 2252 | R13: Teacher's Union Name | X13: =UPPER(R14) -> 
C14: =code!H11 -> 8680 | D14: =ROUND((C14*S5),0) -> 2155 | E14: =ROUND((C14*S6),0) -> 1412 | F14: 743 | G14: =ROUND((F14*code!$P$23),0) -> 3715 | H14: 743 | K14: =code!H52 -> 27000 | L14: 6702 | M14: 4391 | N14: 2311 | O14: =ROUND((N14*code!$P$23),0) -> 11555 | P14: 2311
B15: 260 | C15: =code!H12 -> 8940 | D15: =ROUND((C15*S5),0) -> 2219 | E15: =ROUND((C15*S6),0) -> 1454 | F15: 765 | G15: =ROUND((F15*code!$P$23),0) -> 3825 | H15: 765 | K15: =code!H53 -> 27700 | L15: 6876 | M15: 4505 | N15: 2371 | O15: =ROUND((N15*code!$P$23),0) -> 11855 | P15: 2371
C16: =code!H13 -> 9200 | D16: =ROUND((C16*S5),0) -> 2284 | E16: =ROUND((C16*S6),0) -> 1496 | F16: 788 | G16: =ROUND((F16*code!$P$23),0) -> 3940 | H16: 788 | J16: 750 | K16: =code!H54 -> 28450 | L16: 7062 | M16: 4627 | N16: 2435 | O16: =ROUND((N16*code!$P$23),0) -> 12175 | P16: 2435 | R16: DA GO(P) No
C17: =code!H14 -> 9460 | D17: =ROUND((C17*S5),0) -> 2348 | E17: =ROUND((C17*S6),0) -> 1539 | F17: 809 | G17: =ROUND((F17*code!$P$23),0) -> 4045 | H17: 809 | K17: =code!H55 -> 29200 | L17: 7249 | M17: 4749 | N17: 2500 | O17: =ROUND((N17*code!$P$23),0) -> 12500 | P17: 2500 | R17: No | S17: Date
B18: 280 | C18: =code!H15 -> 9740 | D18: =ROUND((C18*S5),0) -> 2418 | E18: =ROUND((C18*S6),0) -> 1584 | F18: 834 | G18: =ROUND((F18*code!$P$23),0) -> 4170 | H18: 834 | K18: =code!H56 -> 29950 | L18: 7435 | M18: 4871 | N18: 2564 | O18: =ROUND((N18*code!$P$23),0) -> 12820 | P18: 2564
C19: =code!H16 -> 10020 | D19: =ROUND((C19*S5),0) -> 2487 | E19: =ROUND((C19*S6),0) -> 1630 | F19: 857 | G19: =ROUND((F19*code!$P$23),0) -> 4285 | H19: 857 | J19: 800 | K19: =code!H57 -> 30750 | L19: 7633 | M19: 5001 | N19: 2632 | O19: =ROUND((N19*code!$P$23),0) -> 13160 | P19: 2632
C20: =code!H17 -> 10300 | D20: =ROUND((C20*S5),0) -> 2557 | E20: =ROUND((C20*S6),0) -> 1675 | F20: 882 | G20: =ROUND((F20*code!$P$23),0) -> 4410 | H20: 882 | K20: =code!H58 -> 31550 | L20: 7832 | M20: 5131 | N20: 2701 | O20: =ROUND((N20*code!$P$23),0) -> 13505 | P20: 2701 | R20: UNIT | S20: xyz
B21: 300 | C21: =code!H18 -> 10600 | D21: =ROUND((C21*S5),0) -> 2631 | E21: =ROUND((C21*S6),0) -> 1724 | F21: 907 | G21: =ROUND((F21*code!$P$23),0) -> 4535 | H21: 907 | K21: =code!H59 -> 32350 | L21: 8031 | M21: 5261 | N21: 2770 | O21: =ROUND((N21*code!$P$23),0) -> 13850 | P21: 2770
C22: =code!H19 -> 10900 | D22: =ROUND((C22*S5),0) -> 2706 | E22: =ROUND((C22*S6),0) -> 1773 | F22: 933 | G22: =ROUND((F22*code!$P$23),0) -> 4665 | H22: 933 | J22: 850 | K22: =code!H60 -> 33200 | L22: 8242 | M22: 5400 | N22: 2842 | O22: =ROUND((N22*code!$P$23),0) -> 14210 | P22: 2842
C23: =code!H20 -> 11200 | D23: =ROUND((C23*S5),0) -> 2780 | E23: =ROUND((C23*S6),0) -> 1822 | F23: 958 | G23: =ROUND((F23*code!$P$23),0) -> 4790 | H23: 958 | K23: =code!H61 -> 34050 | L23: 8453 | M23: 5538 | N23: 2915 | O23: =ROUND((N23*code!$P$23),0) -> 14575 | P23: 2915
B24: 330 | C24: =code!H21 -> 11530 | D24: =ROUND((C24*S5),0) -> 2862 | E24: =ROUND((C24*S6),0) -> 1875 | F24: 987 | G24: =ROUND((F24*code!$P$23),0) -> 4935 | H24: 987 | K24: =code!H62 -> 34900 | L24: 8664 | M24: 5676 | N24: 2988 | O24: =ROUND((N24*code!$P$23),0) -> 14940 | P24: 2988
C25: =code!H22 -> 11860 | D25: =ROUND((C25*S5),0) -> 2944 | E25: =ROUND((C25*S6),0) -> 1929 | F25: 1015 | G25: =ROUND((F25*code!$P$23),0) -> 5075 | H25: 1015 | J25: 900 | K25: =code!H63 -> 35800 | L25: 8887 | M25: 5823 | N25: 3064 | O25: =ROUND((N25*code!$P$23),0) -> 15320 | P25: 3064
C26: =code!H23 -> 12190 | D26: =ROUND((C26*S5),0) -> 3026 | E26: =ROUND((C26*S6),0) -> 1983 | F26: 1043 | G26: =ROUND((F26*code!$P$23),0) -> 5215 | H26: 1043 | K26: =code!H64 -> 36700 | L26: 9110 | M26: 5969 | N26: 3141 | O26: =ROUND((N26*code!$P$23),0) -> 15705 | P26: 3141
B27: 360 | C27: =code!H24 -> 12550 | D27: =ROUND((C27*S5),0) -> 3115 | E27: =ROUND((C27*S6),0) -> 2041 | F27: 1074 | G27: =ROUND((F27*code!$P$23),0) -> 5370 | H27: 1074 | K27: =code!H65 -> 37600 | L27: 9334 | M27: 6115 | N27: 3219 | O27: =ROUND((N27*code!$P$23),0) -> 16095 | P27: 3219
C28: =code!H25 -> 12910 | D28: =ROUND((C28*S5),0) -> 3205 | E28: =ROUND((C28*S6),0) -> 2100 | F28: 1105 | G28: =ROUND((F28*code!$P$23),0) -> 5525 | H28: 1105 | J28: 970 | K28: =code!H66 -> 38570 | L28: 9575 | M28: 6273 | N28: 3302 | O28: =ROUND((N28*code!$P$23),0) -> 16510 | P28: 3302
C29: =code!H26 -> 13270 | D29: =ROUND((C29*S5),0) -> 3294 | E29: =ROUND((C29*S6),0) -> 2158 | F29: 1136 | G29: =ROUND((F29*code!$P$23),0) -> 5680 | H29: 1136 | K29: =code!H67 -> 39540 | L29: 9815 | M29: 6431 | N29: 3384 | O29: =ROUND((N29*code!$P$23),0) -> 16920 | P29: 3384
B30: 390 | C30: =code!H27 -> 13660 | D30: =ROUND((C30*S5),0) -> 3391 | E30: =ROUND((C30*S6),0) -> 2222 | F30: 1169 | G30: =ROUND((F30*code!$P$23),0) -> 5845 | H30: 1169 | K30: =code!H68 -> 40510 | L30: 10056 | M30: 6589 | N30: 3467 | O30: =ROUND((N30*code!$P$23),0) -> 17335 | P30: 3467
C31: =code!H28 -> 14050 | D31: =ROUND((C31*S5),0) -> 3488 | E31: =ROUND((C31*S6),0) -> 2285 | F31: 1203 | G31: =ROUND((F31*code!$P$23),0) -> 6015 | H31: 1203 | J31: 1040 | K31: =code!H69 -> 41550 | L31: 10314 | M31: 6758 | N31: 3556 | O31: =ROUND((N31*code!$P$23),0) -> 17780 | P31: 3556
C32: =code!H29 -> 14440 | D32: =ROUND((C32*S5),0) -> 3585 | E32: =ROUND((C32*S6),0) -> 2349 | F32: 1236 | G32: =ROUND((F32*code!$P$23),0) -> 6180 | H32: 1236 | K32: =code!H70 -> 42590 | L32: 10573 | M32: 6927 | N32: 3646 | O32: =ROUND((N32*code!$P$23),0) -> 18230 | P32: 3646
B33: 420 | C33: =code!H30 -> 14860 | D33: =ROUND((C33*S5),0) -> 3689 | E33: =ROUND((C33*S6),0) -> 2417 | F33: 1272 | G33: =ROUND((F33*code!$P$23),0) -> 6360 | H33: 1272 | K33: =code!H71 -> 43630 | L33: 10831 | M33: 7096 | N33: 3735 | O33: =ROUND((N33*code!$P$23),0) -> 18675 | P33: 3735
C34: =code!H31 -> 15280 | D34: =ROUND((C34*S5),0) -> 3793 | E34: =ROUND((C34*S6),0) -> 2485 | F34: 1308 | G34: =ROUND((F34*code!$P$23),0) -> 6540 | H34: 1308 | J34: 1110 | K34: =code!H72 -> 44740 | L34: 11106 | M34: 7277 | N34: 3829 | O34: =ROUND((N34*code!$P$23),0) -> 19145 | P34: 3829
C35: =code!H32 -> 15700 | D35: =ROUND((C35*S5),0) -> 3897 | E35: =ROUND((C35*S6),0) -> 2553 | F35: 1344 | G35: =ROUND((F35*code!$P$23),0) -> 6720 | H35: 1344 | K35: =code!H73 -> 45850 | L35: 11382 | M35: 7457 | N35: 3925 | O35: =ROUND((N35*code!$P$23),0) -> 19625 | P35: 3925
B36: 450 | C36: =code!H33 -> 16150 | D36: =ROUND((C36*$S$5),0) -> 4009 | E36: =ROUND((C36*$S$6),0) -> 2627 | F36: 1382 | G36: =ROUND((F36*code!$P$23),0) -> 6910 | H36: 1382 | K36: =code!H74 -> 46960 | L36: 11657 | M36: 7638 | N36: 4019 | O36: =ROUND((N36*code!$P$23),0) -> 20095 | P36: 4019
C37: =code!H34 -> 16600 | D37: =ROUND((C37*$S$5),0) -> 4121 | E37: =ROUND((C37*$S$6),0) -> 2700 | F37: =D37-E37 -> 1421 | G37: =ROUND((F37*code!$P$23),0) -> 7105 | H37: =ROUND((F37*1),0) -> 1421 | J37: 1200 | K37: =code!H75 -> 48160 | L37: 11955 | M37: 7833 | N37: 4122 | O37: =ROUND((N37*code!$P$23),0) -> 20610 | P37: 4122
C38: =code!H35 -> 17050 | D38: 4232 | E38: 2773 | F38: 1459 | G38: =ROUND((F38*code!$P$23),0) -> 7295 | H38: 1459 | K38: =code!H76 -> 49360 | L38: 12253 | M38: 8028 | N38: 4225 | O38: =ROUND((N38*code!$P$23),0) -> 21125 | P38: 4225
B39: 490 | C39: =code!H36 -> 17540 | D39: 4354 | E39: 2853 | F39: 1501 | G39: =ROUND((F39*code!$P$23),0) -> 7505 | H39: 1501 | K39: =code!H77 -> 50560 | L39: 12551 | M39: 8223 | N39: 4328 | O39: =ROUND((N39*code!$P$23),0) -> 21640 | P39: 4328
C40: =code!H37 -> 18030 | D40: 4476 | E40: 2932 | F40: 1544 | G40: =ROUND((F40*code!$P$23),0) -> 7720 | H40: 1544 | K40: =code!H78 -> 51760 | L40: 12849 | M40: 8418 | N40: 4431 | O40: =ROUND((N40*code!$P$23),0) -> 22155 | P40: 4431
C41: =code!H38 -> 18520 | D41: 4597 | E41: 3012 | F41: 1585 | G41: =ROUND((F41*code!$P$23),0) -> 7925 | H41: 1585 | J41: 1300 | K41: =code!H79 -> 53060 | L41: 13172 | M41: 8630 | N41: 4542 | O41: =ROUND((N41*code!$P$23),0) -> 22710 | P41: 4542
B42: 530 | C42: =code!H39 -> 19050 | D42: 4729 | E42: 3098 | F42: 1631 | G42: =ROUND((F42*code!$P$23),0) -> 8155 | H42: 1631 | K42: =code!H80 -> 54360 | L42: 13494 | M42: 8841 | N42: 4653 | O42: =ROUND((N42*code!$P$23),0) -> 23265 | P42: 4653
C43: =code!H40 -> 19580 | D43: 4861 | E43: 3184 | F43: 1677 | G43: =ROUND((F43*code!$P$23),0) -> 8385 | H43: 1677 | K43: =code!H81 -> 55660 | L43: 13817 | M43: 9053 | N43: 4764 | O43: =ROUND((N43*code!$P$23),0) -> 23820 | P43: 4764
C44: =code!H41 -> 20110 | D44: 4992 | E44: 3271 | F44: 1721 | G44: =ROUND((F44*code!$P$23),0) -> 8605 | H44: 1721 | J44: =K44 ->  | K44: =UPPER($R$14) ->  | L44: =$K$44 ->  | M44: =$K$44 -> 
B45: 570 | C45: =code!H42 -> 20680 | D45: 5134 | E45: 3363 | F45: 1771 | G45: =ROUND((F45*code!$P$23),0) -> 8855 | H45: 1771 | J45: =K44 ->  | K45: =$K$44 ->  | L45: =$K$44 -> 
C46: =CONCATENATE("Prepared by:",UPPER(R14)," "," Visit:www.gsreddy.tk,cell:9666570250") -> Prepared by: Visit:www.gsreddy.tk,cell:9666570250
F47: =IF(S20=0," ","GS/PRE,"&UPPER(S20)&" UNIT") -> GS/PRE,XYZ UNIT

Sheet code (hidden)
G2: 1 | H2: 6700
G3: 2 | H3: 6900
G4: 3 | H4: 7100
E5: D.A READY RECKONER | G5: 4 | H5: 7300
G6: 5 | H6: 7520 | J6: =DATE(M8,K8,1) -> 2010-07-01 | K6: =DAY(J6)&"-"&MONTH(J6)&"-"&YEAR(J6) -> 1-7-2010 | O6: =DATE(Q8,O8,1) -> 2010-12-01 | P6: =DAY(O6)&"-"&R6&"-"&YEAR(O6) -> 1-11-2010 | Q6: =DAY(O6)&"-"&MONTH(O6)&"-"&YEAR(O6) -> 1-12-2010 | R6: =IF(O8=1,12,O8-1) -> 11
G7: 6 | H7: 7740 | K7: ZPPF | O7: CASH
G8: 7 | H8: 7960 | J8: =LOOKUP(K8,J9:K20,K9:K20) -> Jul | K8: 7 | L8: 1 | M8: =LOOKUP(L8,J9:L11,L9:L11) -> 2010 | N8: =LOOKUP(O8,N9:O20,O9:O20) -> Dec | O8: 12 | P8: 1 | Q8: =LOOKUP(P8,N9:P11,P9:P11) -> 2010 | R8: 1 | S8: =LOOKUP(R8,Q9:R11,R9:R11) -> ZPPF
E9: 5 | G9: 8 | H9: 8200 | J9: 1 | K9: Jan | L9: 2010 | N9: 1 | O9: Jan | P9: 2010 | Q9: 1 | R9: ZPPF
E10: 1 | G10: 9 | H10: 8440 | J10: 2 | K10: Feb | L10: 2011 | N10: 2 | O10: Feb | P10: 2011 | Q10: 2 | R10: GPF
G11: 10 | H11: 8680 | J11: 3 | K11: Mar | L11: 2012 | N11: 3 | O11: Mar | P11: 2012 | Q11: 3 | R11: CSS
G12: 11 | H12: 8940 | J12: 4 | K12: Apr | N12: 4 | O12: Apr | U12: =UPPER(LEFT('DA S0FTWARE'!$R$14,1)&" "&MID('DA S0FTWARE'!$R$14,2,1)&" "&MID('DA S0FTWARE'!$R$14,3,1)&" "&MID('DA S0FTWARE'!$R$14,4,1)&" "&MID('DA S0FTWARE'!$R$14,5,1)&" "&MID('DA S0FTWARE'!$R$14,6,1)&" "&MID('DA S0FTWARE'!$R$14,7,1)&" "&MID('DA S0FTWARE'!$R$14,8,1)&" "&MID('DA S0FTWARE'!$R$14,9,1)) -> 
G13: 12 | H13: 9200 | J13: 5 | K13: May | N13: 5 | O13: May | U13: =UPPER('DA S0FTWARE'!$R$14) -> 
C14: Feb | G14: 13 | H14: 9460 | J14: 6 | K14: Jun | N14: 6 | O14: Jun
C15: 2010 | D15: 28 | G15: 14 | H15: 9740 | J15: 7 | K15: Jul | N15: 7 | O15: Jul
C16: 2011 | D16: 28 | G16: 15 | H16: 10020 | J16: 8 | K16: Aug | N16: 8 | O16: Aug
C17: 2012 | D17: 29 | G17: 16 | H17: 10300 | J17: 9 | K17: Sep | N17: 9 | O17: Sep
C18: 2013 | D18: 28 | G18: 17 | H18: 10600 | J18: 10 | K18: Oct | N18: 10 | O18: Oct
C19: 2014 | D19: 28 | G19: 18 | H19: 10900 | J19: 11 | K19: Nov | N19: 11 | O19: Nov
C20: 2015 | D20: 28 | G20: 19 | H20: 11200 | J20: 12 | K20: Dec | N20: 12 | O20: Dec
C21: 2016 | D21: 29 | G21: 20 | H21: 11530
C22: 1 | D22: 31 | E22: =LOOKUP(V24,C22:D33,D22:D33) -> 30 | G22: 21 | H22: 11860 | K22: ZPPF | N22: ZPPF | P22: Diff | T22: =DATE(YEAR(T23),MONTH(T23),1) -> 2011-11-01
C23: 2 | D23: =IF(OR(YEAR(T22)=2012,YEAR(T22)=2016),29,28) -> 28 | G23: 22 | H23: 12190 | J23: =CONCATENATE(J8," ",RIGHT(M8,2)) -> Jul 10 | K23: =MATCH(J23,K24:K59,0) -> 7 | M23: =CONCATENATE(N8," ",RIGHT(Q8,2)) -> Dec 10 | N23: =MATCH(M23,N24:N59,0) -> 12 | P23: =N23-K23 -> 5 | T23: =T24 -> Nov 10
B24: =IF('DA S0FTWARE'!$R$18=0," ",code!J24) ->  | C24: 3 | D24: 31 | E24: =IF('DA S0FTWARE'!$R$18=0," ",code!K24) ->  | G24: 23 | H24: 12550 | J24: 1 | K24: =CONCATENATE(K9," ",RIGHT($L$9,2)) -> Jan 10 | M24: =J24 -> 1 | N24: =K24 -> Jan 10 | Q24: 1 | R24: Jan 10 | T24: =LOOKUP(N23,Q24:R61,S24:S60) -> Nov 10 | U24: =LEFT(T24,3) -> Nov | V24: =MATCH(U24,O9:O20,0) -> 11 | W24: =CONCATENATE(V24,"/",RIGHT(T24,2)) -> 11/10
B25: =IF('DA S0FTWARE'!$R$18=0," ",code!J25) ->  | C25: 4 | D25: 30 | E25: =IF('DA S0FTWARE'!$R$18=0," ",code!K25) ->  | G25: 24 | H25: 12910 | J25: 2 | K25: =CONCATENATE(K10," ",RIGHT($L$9,2)) -> Feb 10 | M25: 2 | N25: Feb 10 | Q25: 2 | R25: Feb 10 | S25: Jan 10
B26: =IF('DA S0FTWARE'!$R$18=0," ",code!J26) ->  | C26: 5 | D26: 31 | E26: =IF('DA S0FTWARE'!$R$18=0," ",code!K26) ->  | G26: 25 | H26: 13270 | J26: 3 | K26: Mar 10 | M26: 3 | N26: Mar 10 | Q26: 3 | R26: Mar 10 | S26: Feb 10
B27: =IF('DA S0FTWARE'!$R$18=0," ",code!J27) ->  | C27: 6 | D27: 30 | E27: =IF('DA S0FTWARE'!$R$18=0," ",code!K27) ->  | G27: 26 | H27: 13660 | J27: 4 | K27: Apr 10 | M27: 4 | N27: Apr 10 | Q27: 4 | R27: Apr 10 | S27: Mar 10
B28: =IF('DA S0FTWARE'!$R$18=0," ",code!J28) ->  | C28: 7 | D28: 31 | E28: =IF('DA S0FTWARE'!$R$18=0," ",code!K28) ->  | G28: 27 | H28: 14050 | J28: 5 | K28: May 10 | M28: 5 | N28: May 10 | Q28: 5 | R28: May 10 | S28: Apr 10
B29: =IF('DA S0FTWARE'!$R$18=0," ",code!J29) ->  | C29: 8 | D29: 31 | E29: =IF('DA S0FTWARE'!$R$18=0," ",code!K29) ->  | G29: 28 | H29: 14440 | J29: 6 | K29: Jun 10 | M29: 6 | N29: Jun 10 | Q29: 6 | R29: Jun 10 | S29: May 10
B30: =IF('DA S0FTWARE'!$R$18=0," ",code!J30) ->  | C30: 9 | D30: 30 | E30: =IF('DA S0FTWARE'!$R$18=0," ",code!K30) ->  | G30: 29 | H30: 14860 | J30: 7 | K30: Jul 10 | M30: 7 | N30: Jul 10 | Q30: 7 | R30: Jul 10 | S30: Jun 10
B31: =IF('DA S0FTWARE'!$R$18=0," ",code!J31) ->  | C31: 10 | D31: 31 | E31: =IF('DA S0FTWARE'!$R$18=0," ",code!K31) ->  | G31: 30 | H31: 15280 | J31: 8 | K31: Aug 10 | M31: 8 | N31: Aug 10 | Q31: 8 | R31: Aug 10 | S31: Jul 10
B32: =IF('DA S0FTWARE'!$R$18=0," ",code!J32) ->  | C32: 11 | D32: 30 | E32: =IF('DA S0FTWARE'!$R$18=0," ",code!K32) ->  | G32: 31 | H32: 15700 | J32: 9 | K32: Sep 10 | M32: 9 | N32: Sep 10 | Q32: 9 | R32: Sep 10 | S32: Aug 10
B33: =IF('DA S0FTWARE'!$R$18=0," ",code!J33) ->  | C33: 12 | D33: 31 | E33: =IF('DA S0FTWARE'!$R$18=0," ",code!K33) ->  | G33: 32 | H33: 16150 | J33: 10 | K33: =CONCATENATE(K18," ",RIGHT($L$9,2)) -> Oct 10 | M33: 10 | N33: Oct 10 | Q33: 10 | R33: Oct 10 | S33: Sep 10
B34: =IF('DA S0FTWARE'!$R$18=0," ",code!J34) ->  | C34: =IF('DA S0FTWARE'!$R$18=0," ",code!K34) ->  | E34: =IF('DA S0FTWARE'!$R$18=0," ",code!K34) ->  | G34: 33 | H34: 16600 | J34: 11 | K34: Nov 10 | M34: 11 | N34: Nov 10 | Q34: 11 | R34: Nov 10 | S34: Oct 10
B35: =IF('DA S0FTWARE'!$R$18=0," ",code!J35) ->  | C35: =IF('DA S0FTWARE'!$R$18=0," ",code!K35) ->  | E35: =IF('DA S0FTWARE'!$R$18=0," ",code!K35) ->  | G35: 34 | H35: 17050 | J35: 12 | K35: Dec 10 | M35: 12 | N35: Dec 10 | Q35: 12 | R35: Dec 10 | S35: Nov 10
B36: =IF('DA S0FTWARE'!$R$18=0," ",code!J36) ->  | C36: =IF('DA S0FTWARE'!$R$18=0," ",code!K36) ->  | E36: =IF('DA S0FTWARE'!$R$18=0," ",code!K36) ->  | G36: 35 | H36: 17540 | J36: 13 | K36: =CONCATENATE(K9," ",RIGHT($L$10,2)) -> Jan 11 | M36: 13 | N36: Jan 11 | Q36: 13 | R36: Jan 11 | S36: Dec 10
B37: =IF('DA S0FTWARE'!$R$18=0," ",code!J37) ->  | C37: =IF('DA S0FTWARE'!$R$18=0," ",code!K37) ->  | E37: =IF('DA S0FTWARE'!$R$18=0," ",code!K37) ->  | G37: 36 | H37: 18030 | J37: 14 | K37: =CONCATENATE(K10," ",RIGHT($L$10,2)) -> Feb 11 | M37: 14 | N37: Feb 11 | Q37: 14 | R37: Feb 11 | S37: Jan 11
B38: =IF('DA S0FTWARE'!$R$18=0," ",code!J38) ->  | C38: =IF('DA S0FTWARE'!$R$18=0," ",code!K38) ->  | E38: =IF('DA S0FTWARE'!$R$18=0," ",code!K38) ->  | G38: 37 | H38: 18520 | J38: 15 | K38: Mar 11 | M38: 15 | N38: Mar 11 | Q38: 15 | R38: Mar 11 | S38: Feb 11
B39: =IF('DA S0FTWARE'!$R$18=0," ",code!J39) ->  | C39: =IF('DA S0FTWARE'!$R$18=0," ",code!K39) ->  | E39: =IF('DA S0FTWARE'!$R$18=0," ",code!K39) ->  | G39: 38 | H39: 19050 | J39: 16 | K39: Apr 11 | M39: 16 | N39: Apr 11 | Q39: 16 | R39: Apr 11 | S39: Mar 11
B40: =IF('DA S0FTWARE'!$R$18=0," ",code!J40) ->  | C40: =IF('DA S0FTWARE'!$R$18=0," ",code!K40) ->  | E40: =IF('DA S0FTWARE'!$R$18=0," ",code!K40) ->  | G40: 39 | H40: 19580 | J40: 17 | K40: May 11 | M40: 17 | N40: May 11 | Q40: 17 | R40: May 11 | S40: Apr 11
B41: =IF('DA S0FTWARE'!$R$18=0," ",code!J41) ->  | C41: =IF('DA S0FTWARE'!$R$18=0," ",code!K41) ->  | E41: =IF('DA S0FTWARE'!$R$18=0," ",code!K41) ->  | G41: 40 | H41: 20110 | J41: 18 | K41: Jun 11 | M41: 18 | N41: Jun 11 | Q41: 18 | R41: Jun 11 | S41: May 11
B42: =IF('DA S0FTWARE'!$R$18=0," ",code!J42) ->  | C42: =IF('DA S0FTWARE'!$R$18=0," ",code!K42) ->  | E42: =IF('DA S0FTWARE'!$R$18=0," ",code!K42) ->  | G42: 41 | H42: 20680 | J42: 19 | K42: Jul 11 | M42: 19 | N42: Jul 11 | Q42: 19 | R42: Jul 11 | S42: Jun 11
B43: =IF('DA S0FTWARE'!$R$18=0," ",code!J43) ->  | C43: =IF('DA S0FTWARE'!$R$18=0," ",code!K43) ->  | E43: =IF('DA S0FTWARE'!$R$18=0," ",code!K43) ->  | G43: 42 | H43: 21250 | J43: 20 | K43: Aug 11 | M43: 20 | N43: Aug 11 | Q43: 20 | R43: Aug 11 | S43: Jul 11
B44: =IF('DA S0FTWARE'!$R$18=0," ",code!J44) ->  | C44: =IF('DA S0FTWARE'!$R$18=0," ",code!K44) ->  | E44: =IF('DA S0FTWARE'!$R$18=0," ",code!K44) ->  | G44: 43 | H44: 21820 | J44: 21 | K44: Sep 11 | M44: 21 | N44: Sep 11 | Q44: 21 | R44: Sep 11 | S44: Aug 11
B45: =IF('DA S0FTWARE'!$R$18=0," ",code!J45) ->  | C45: =IF('DA S0FTWARE'!$R$18=0," ",code!K45) ->  | E45: =IF('DA S0FTWARE'!$R$18=0," ",code!K45) ->  | G45: 44 | H45: 22430 | J45: 22 | K45: Oct 11 | M45: 22 | N45: Oct 11 | Q45: 22 | R45: Oct 11 | S45: Sep 11
B46: =IF('DA S0FTWARE'!$R$18=0," ",code!J46) ->  | C46: =IF('DA S0FTWARE'!$R$18=0," ",code!K46) ->  | E46: =IF('DA S0FTWARE'!$R$18=0," ",code!K46) ->  | G46: 45 | H46: 23040 | J46: 23 | K46: Nov 11 | M46: 23 | N46: Nov 11 | Q46: 23 | R46: Nov 11 | S46: Oct 11
B47: =IF('DA S0FTWARE'!$R$18=0," ",code!J47) ->  | C47: =IF('DA S0FTWARE'!$R$18=0," ",code!K47) ->  | E47: =IF('DA S0FTWARE'!$R$18=0," ",code!K47) ->  | G47: 46 | H47: 23650 | J47: 24 | K47: Dec 11 | M47: 24 | N47: Dec 11 | Q47: 24 | R47: Dec 11 | S47: Nov 11
B48: =IF('DA S0FTWARE'!$R$18=0," ",code!J48) ->  | C48: =IF('DA S0FTWARE'!$R$18=0," ",code!K48) ->  | E48: =IF('DA S0FTWARE'!$R$18=0," ",code!K48) ->  | G48: 47 | H48: 24300 | J48: 25 | K48: =CONCATENATE(K9," ",RIGHT($L$11,2)) -> Jan 12 | M48: 25 | N48: Jan 12 | Q48: 25 | R48: Jan 12 | S48: Dec 11
B49: =IF('DA S0FTWARE'!$R$18=0," ",code!J49) ->  | C49: =IF('DA S0FTWARE'!$R$18=0," ",code!K49) ->  | E49: =IF('DA S0FTWARE'!$R$18=0," ",code!K49) ->  | G49: 48 | H49: 24950 | J49: 26 | K49: =CONCATENATE(K10," ",RIGHT($L$11,2)) -> Feb 12 | M49: 26 | N49: Feb 12 | Q49: 26 | R49: Feb 12 | S49: Jan 12
B50: =IF('DA S0FTWARE'!$R$18=0," ",code!J50) ->  | C50: =IF('DA S0FTWARE'!$R$18=0," ",code!K50) ->  | E50: =IF('DA S0FTWARE'!$R$18=0," ",code!K50) ->  | G50: 49 | H50: 25600 | J50: 27 | K50: Mar 12 | M50: 27 | N50: Mar 12 | Q50: 27 | R50: Mar 12 | S50: Feb 12
B51: =IF('DA S0FTWARE'!$R$18=0," ",code!J51) ->  | C51: =IF('DA S0FTWARE'!$R$18=0," ",code!K51) ->  | E51: =IF('DA S0FTWARE'!$R$18=0," ",code!K51) ->  | G51: 50 | H51: 26300 | J51: 28 | K51: Apr 12 | M51: 28 | N51: Apr 12 | Q51: 28 | R51: Apr 12 | S51: Mar 12
B52: =IF('DA S0FTWARE'!$R$18=0," ",code!J52) ->  | C52: =IF('DA S0FTWARE'!$R$18=0," ",code!K52) ->  | E52: =IF('DA S0FTWARE'!$R$18=0," ",code!K52) ->  | G52: 51 | H52: 27000 | J52: 29 | K52: May 12 | M52: 29 | N52: May 12 | Q52: 29 | R52: May 12 | S52: Apr 12
B53: =IF('DA S0FTWARE'!$R$18=0," ",code!J53) ->  | C53: =IF('DA S0FTWARE'!$R$18=0," ",code!K53) ->  | E53: =IF('DA S0FTWARE'!$R$18=0," ",code!K53) ->  | G53: 52 | H53: 27700 | J53: 30 | K53: Jun 12 | M53: 30 | N53: Jun 12 | Q53: 30 | R53: Jun 12 | S53: May 12
B54: =IF('DA S0FTWARE'!$R$18=0," ",code!J54) ->  | C54: =IF('DA S0FTWARE'!$R$18=0," ",code!K54) ->  | E54: =IF('DA S0FTWARE'!$R$18=0," ",code!K54) ->  | G54: 53 | H54: 28450 | J54: 31 | K54: Jul 12 | M54: 31 | N54: Jul 12 | Q54: 31 | R54: Jul 12 | S54: Jun 12
B55: =IF('DA S0FTWARE'!$R$18=0," ",code!J55) ->  | C55: =IF('DA S0FTWARE'!$R$18=0," ",code!K55) ->  | E55: =IF('DA S0FTWARE'!$R$18=0," ",code!K55) ->  | G55: 54 | H55: 29200 | J55: 32 | K55: Aug 12 | M55: 32 | N55: Aug 12 | Q55: 32 | R55: Aug 12 | S55: Jul 12
B56: =IF('DA S0FTWARE'!$R$18=0," ",code!J56) ->  | C56: =IF('DA S0FTWARE'!$R$18=0," ",code!K56) ->  | E56: =IF('DA S0FTWARE'!$R$18=0," ",code!K56) ->  | G56: 55 | H56: 29950 | J56: 33 | K56: Sep 12 | M56: 33 | N56: Sep 12 | Q56: 33 | R56: Sep 12 | S56: Aug 12
B57: =IF('DA S0FTWARE'!$R$18=0," ",code!J57) ->  | C57: =IF('DA S0FTWARE'!$R$18=0," ",code!K57) ->  | E57: =IF('DA S0FTWARE'!$R$18=0," ",code!K57) ->  | G57: 56 | H57: 30750 | J57: 34 | K57: Oct 12 | M57: 34 | N57: Oct 12 | Q57: 34 | R57: Oct 12 | S57: Sep 12
B58: =IF('DA S0FTWARE'!$R$18=0," ",code!J58) ->  | C58: =IF('DA S0FTWARE'!$R$18=0," ",code!K58) ->  | E58: =IF('DA S0FTWARE'!$R$18=0," ",code!K58) ->  | G58: 57 | H58: 31550 | J58: 35 | K58: Nov 12 | M58: 35 | N58: Nov 12 | Q58: 35 | R58: Nov 12 | S58: Oct 12
B59: =IF('DA S0FTWARE'!$R$18=0," ",code!J59) ->  | C59: =IF('DA S0FTWARE'!$R$18=0," ",code!K59) ->  | E59: =IF('DA S0FTWARE'!$R$18=0," ",code!K59) ->  | G59: 58 | H59: 32350 | J59: 36 | K59: Dec 12 | M59: 36 | N59: Dec 12 | Q59: 36 | R59: Dec 12 | S59: Nov 12
G60: 59 | H60: 33200 | M60: 0 | N60: 0 | Q60: 37 | S60: Dec 12
G61: 60 | H61: 34050
G62: 61 | H62: 34900 | J62: 24 | K62: 7 | L62: =LOOKUP(K62,J24:K59,K24:K59) -> Jul 10 | M62: =IF('DA S0FTWARE'!R18>0,code!J62,0) -> 0
G63: 62 | H63: 35800 | J63: =CONCATENATE(J62," ",L62) -> 24 Jul 10 | K63: =MONTH(J63) -> 7 | L63: =RIGHT(L62,2) -> 10
G64: 63 | H64: 36700 | J64: =IF(M62>0,M62&"-"&K63&"-"&L63,0) -> 0
G65: 64 | H65: 37600
G66: 65 | H66: 38570
G67: 66 | H67: 39540 | N67: _______
G68: 67 | H68: 40510 | J68: =CONCATENATE("Enhanced D.A w.e.f ",DAY(DATE(code!M8,code!K8,1)),"-",MONTH(DATE(code!M8,code!K8,1)),"-",YEAR(DATE(code!M8,code!K8,1))," G.O(P).No:",N70,",Dt:",O70) -> Enhanced D.A w.e.f 1-7-2010 G.O(P).No:_______,Dt:_______
G69: 68 | H69: 41550
G70: 69 | H70: 42590 | J70: =IF('DA S0FTWARE'!R18=" ",_________,'DA S0FTWARE'!R18) -> 0 | N70: =IF('DA S0FTWARE'!R18=0,N67,'DA S0FTWARE'!R18) -> _______ | O70: =IF('DA S0FTWARE'!R18=J64,N67,J64) -> _______
G71: 70 | H71: 43630
G72: 71 | H72: 44740
G73: 72 | H73: 45850
G74: 73 | H74: 46960
G75: 74 | H75: 48160
G76: 75 | H76: 49360
G77: 76 | H77: 50560
G78: 77 | H78: 51760
G79: 78 | H79: 53060
G80: 79 | H80: 54360
G81: 80 | H81: 55660

Sheet Compatibility Report (hidden)
B1: Compatibility Report for DA software PRC 2010.xlsx
B2: Run on 08/11/2010 17:41
B4: The following features in this workbook are not supported by earlier versions of Excel. These features may be lost or degraded when you save this workbook in an earlier file format.
B6: Minor loss of fidelity | E6: # of occurrences
B8: Some cells or styles in this workbook contain formatting that is not supported by the selected file format. These formats will be converted to the closest format available. | E8: 38
